fUST/lending_fUST_20250221
["ID","MTS","AMOUNT","RATE_DAILY","PERIOD"]
[353838381,1740087038521,-158.47274516,0.0001378,2]
[353838382,1740087038531,-500.0,0.0001378,2]
[353838383,1740087038540,-500.0,0.0001378,2]
[353838384,1740087038550,-500.0,0.0001378,2]
[353838385,1740087038559,-500.0,0.0001378,2]
[353838386,1740087038569,-500.0,0.0001378,2]
[353838387,1740087038578,-183.50695262,0.0001378,2]
[353838388,1740087038587,-500.0,0.0001378,2]
[353838389,1740087038598,-500.0,0.0001378,2]
[353838390,1740087038607,-500.0,0.0001378,2]
[353838391,1740087038617,-500.0,0.0001378,2]
[353838392,1740087038626,-500.0,0.0001378,2]
[353838393,1740087038635,-500.0,0.0001378,2]
[353838394,1740087038645,-500.0,0.0001378,2]
[353838395,1740087038655,-500.0,0.0001378,2]
[353838396,1740087038664,-500.0,0.0001378,2]
[353838397,1740087038673,-500.0,0.0001378,2]
[353838398,1740087038683,-500.0,0.0001378,2]
[353838399,1740087038692,-500.0,0.0001378,2]
[353838400,1740087038702,-500.0,0.0001378,2]
[353838401,1740087038711,-500.0,0.0001378,2]
[353838402,1740087038721,-500.0,0.0001378,2]
[353838403,1740087038731,-500.0,0.0001378,2]
[353838404,1740087038740,-500.0,0.0001378,2]
[353838405,1740087038749,-500.0,0.0001378,2]
[353838406,1740087038758,-500.0,0.0001378,2]
[353838407,1740087038769,-500.0,0.0001378,2]
[353838408,1740087038778,-500.0,0.0001378,2]
[353838409,1740087038788,-500.0,0.0001378,2]
[353838410,1740087038798,-500.0,0.0001378,2]
[353838411,1740087038807,-500.0,0.0001378,2]
[353838412,1740087038817,-500.0,0.0001378,2]
[353838413,1740087038826,-500.0,0.0001378,2]
[353838414,1740087038835,-500.0,0.0001378,2]
[353838415,1740087038844,-500.0,0.0001378,2]
[353838416,1740087038854,-1641.08,0.0001378,2]
[353838417,1740087038864,-500.0,0.0001378,2]
[353838418,1740087038874,-859.29,0.0001378,2]
[353838419,1740087038884,-1036.17,0.0001378,2]
[353838420,1740087038894,-500.0,0.0001378,2]
[353838421,1740087038903,-162.40579956,0.0001378,2]
[353838422,1740087038912,-500.0,0.0001378,2]
[353838423,1740087038921,-500.0,0.0001378,2]
[353838424,1740087038931,-500.0,0.0001378,2]
[353838425,1740087038940,-500.0,0.0001378,2]
[353838426,1740087038949,-500.0,0.0001378,2]
[353838427,1740087038959,-500.0,0.0001378,2]
[353838428,1740087038970,-500.0,0.0001378,2]
[353838429,1740087038980,-752.36,0.0001378,2]
[353838430,1740087038990,-573.78,0.0001378,2]
[353838431,1740087038999,-500.0,0.0001378,2]
[353838432,1740087039009,-501.8015462,0.0001378,2]
[353838433,1740087039019,-500.0,0.0001378,2]
[353838434,1740087039028,-500.0,0.0001378,2]
[353838435,1740087039038,-500.0,0.0001378,2]
[353838436,1740087039048,-500.0,0.0001378,2]
[353838437,1740087039058,-500.0,0.0001378,2]
[353838438,1740087039068,-500.0,0.0001378,2]
[353838439,1740087039077,-500.0,0.0001378,2]
[353838440,1740087039087,-500.0,0.0001378,2]
[353838441,1740087039097,-1213.27,0.0001378,2]
[353838442,1740087039107,-660.09,0.0001378,2]
[353838443,1740087039116,-784.62,0.0001378,2]
[353838444,1740087039126,-500.0,0.0001378,2]
[353838445,1740087039135,-500.0,0.0001378,2]
[353838446,1740087039144,-496.33797909,0.0001378,2]
[353838447,1740087039154,-500.0,0.0001378,2]
[353838448,1740087039164,-225.43706974,0.0001378,2]
[353838449,1740087039175,-500.0,0.0001378,2]
[353838450,1740087039185,-781.87,0.0001378,2]
[353838451,1740087039195,-237.32,0.0001378,2]
[353838452,1740087039204,-500.0,0.0001378,2]
[353838453,1740087039213,-500.0,0.0001378,2]
[353838454,1740087039223,-500.0,0.0001378,2]
[353838455,1740087039232,-500.0,0.0001378,2]
[353838456,1740087039241,-500.0,0.0001378,2]
[353838457,1740087039253,-500.0,0.0001378,2]
[353838458,1740087039263,-812.22,0.0001378,2]
[353838459,1740087039272,-500.0,0.0001378,2]
[353838460,1740087039282,-500.0,0.0001378,2]
[353838461,1740087039293,-865.91,0.0001378,2]
[353838462,1740087039303,-731.9,0.0001378,2]
[353838463,1740087039312,-1424.64,0.0001378,2]
[353838464,1740087039321,-756.84,0.0001378,2]
[353838465,1740087039331,-500.0,0.0001378,2]
[353838466,1740087039341,-500.0,0.0001378,2]
[353838467,1740087039350,-500.0,0.0001378,2]
[353838468,1740087039359,-500.0,0.0001378,2]
[353838469,1740087039369,-510.23,0.0001378,2]
[353838470,1740087039379,-500.0,0.0001378,2]
[353838471,1740087039388,-543.53,0.0001378,2]
[353838472,1740087039398,-500.0,0.0001378,2]
[353838473,1740087039408,-722.93,0.0001378,2]
[353838474,1740087039417,-501.79889358,0.0001378,2]
[353838475,1740087039427,-616.62,0.0001378,2]
[353838476,1740087039436,-500.0,0.0001378,2]
[353838477,1740087039445,-500.0,0.0001378,2]
[353838478,1740087039454,-500.0,0.0001378,2]
[353838479,1740087039464,-500.0,0.0001378,2]
[353838480,1740087039475,-232.75867246,0.0001378,2]
[353838481,1740087039484,-500.0,0.0001378,2]
[353838483,1740087039494,-500.0,0.0001378,2]
[353838484,1740087039504,-500.0,0.0001378,2]
[353838485,1740087039514,-921.41,0.0001378,2]
[353838486,1740087039524,-528.38009273,0.0001378,2]
[353838487,1740087039533,-500.0,0.0001378,2]
[353838488,1740087039543,-500.0,0.0001378,2]
[353838490,1740087039553,-263.2950686,0.0001378,2]
[353838492,1740087039562,-500.0,0.0001378,2]
[353838493,1740087039572,-500.0,0.0001378,2]
[353838494,1740087039581,-500.0,0.0001378,2]
[353838495,1740087039590,-500.0,0.0001378,2]
[353838496,1740087039599,-500.0,0.0001378,2]
[353838499,1740087039608,-500.0,0.0001378,2]
[353838501,1740087039618,-500.0,0.0001378,2]
[353838502,1740087039627,-500.0,0.0001378,2]
[353838503,1740087039636,-500.0,0.0001378,2]
[353838504,1740087039646,-500.0,0.0001378,2]
[353838505,1740087039656,-634.66,0.0001378,2]
[353838506,1740087039665,-802.0,0.0001378,2]
[353838507,1740087039674,-500.0,0.0001378,2]
[353838508,1740087039684,-500.0,0.0001378,2]
[353838509,1740087039694,-500.0,0.0001378,2]
[353838510,1740087039704,-500.0,0.0001378,2]
[353838511,1740087039713,-500.0,0.0001378,2]
[353838513,1740087039722,-501.48152141,0.0001378,2]
[353838515,1740087039731,-680.47,0.0001378,2]
[353838516,1740087039741,-609.4,0.0001378,2]
[353838517,1740087039751,-500.0,0.0001378,2]
[353838518,1740087039760,-500.0,0.0001378,2]
[353838519,1740087039770,-500.0,0.0001378,2]
[353838520,1740087039780,-500.0,0.0001378,2]
[353838521,1740087039788,-500.0,0.0001378,2]
[353838522,1740087039799,-500.0,0.0001378,2]
[353838523,1740087039810,-500.0,0.0001378,2]
[353838524,1740087039819,-500.0,0.0001378,2]
[353838525,1740087039829,-208.34063742,0.0001378,2]
[353838526,1740087039838,-713.95,0.0001378,2]
[353838527,1740087039847,-500.99649548,0.0001378,2]
[353838528,1740087039857,-462.66210424,0.0001378,2]
[353838529,1740087039866,-4482.33,0.0001378,2]
[353838530,1740087039875,-500.0,0.0001378,2]
[353838531,1740087039885,-500.0,0.0001378,2]
[353838532,1740087039895,-500.0,0.0001378,2]
[353838533,1740087039905,-3843.42,0.0001378,2]
[353838534,1740087039914,-500.0,0.0001378,2]
[353838535,1740087039924,-501.71054458,0.0001378,2]
[353838536,1740087039934,-500.0,0.0001378,2]
[353838537,1740087039944,-500.0,0.0001378,2]
[353838538,1740087039954,-2140.95,0.0001378,2]
[353838539,1740087039965,-500.0,0.0001378,2]
[353838540,1740087039975,-500.0,0.0001378,2]
[353838542,1740087039985,-500.0,0.0001378,2]
[353838543,1740087039994,-711.96,0.0001378,2]
[353838545,1740087040004,-854.95,0.0001378,2]
[353838547,1740087040015,-500.0,0.0001378,2]
[353838549,1740087040025,-1389.71,0.0001378,2]
[353838550,1740087040034,-500.0,0.0001378,2]
[353838551,1740087040044,-500.0,0.0001378,2]
[353838552,1740087040053,-500.0,0.0001378,2]
[353838553,1740087040063,-500.0,0.0001378,2]
[353838555,1740087040072,-16524.72,0.0001378,2]
[353838556,1740087040082,-599.75,0.0001378,2]
[353838557,1740087040093,-500.0,0.0001378,2]
[353838558,1740087040104,-500.0,0.0001378,2]
[353838559,1740087040114,-500.0,0.0001378,2]
[353838561,1740087040124,-500.0,0.0001378,2]
[353838562,1740087040134,-500.0,0.0001378,2]
[353838563,1740087040143,-500.0,0.0001378,2]
[353838564,1740087040154,-701.65,0.0001378,2]
[353838565,1740087040164,-461.56442783,0.0001378,2]
[353838566,1740087040174,-3198.43,0.0001378,2]
[353838567,1740087040184,-1206.8,0.0001378,2]
[353838568,1740087040194,-1312.98,0.0001378,2]
[353838569,1740087040204,-500.0,0.0001378,2]
[353838570,1740087040214,-1437.76,0.0001378,2]
[353838571,1740087040223,-500.0,0.0001378,2]
[353838572,1740087040233,-500.0,0.0001378,2]
[353838573,1740087040243,-1098.36,0.0001378,2]
[353838574,1740087040256,-3728.66,0.0001378,2]
[353838575,1740087040267,-500.0,0.0001378,2]
[353838576,1740087040277,-500.0,0.0001378,2]
[353838577,1740087040287,-500.0,0.0001378,2]
[353838578,1740087040296,-500.0,0.0001378,2]
[353838579,1740087040306,-7892.98,0.0001378,2]
[353838580,1740087040316,-500.0,0.0001378,2]
[353838581,1740087040325,-500.0,0.0001378,2]
[353838582,1740087040335,-500.0,0.0001378,2]
[353838583,1740087040346,-37991.13,0.0001378,2]
[353838584,1740087040355,-500.0,0.0001378,2]
[353838585,1740087040366,-500.0,0.0001378,2]
[353838586,1740087040376,-500.0,0.0001378,2]
[353838587,1740087040386,-500.0,0.0001378,2]
[353838588,1740087040395,-500.0,0.0001378,2]
[353838589,1740087040405,-2455.56,0.0001378,2]
[353838590,1740087040415,-500.0,0.0001378,2]
[353838591,1740087040424,-500.0,0.0001378,2]
[353838592,1740087040434,-4421.0,0.0001378,2]
[353838593,1740087040443,-500.0,0.0001378,2]
[353838594,1740087040452,-1271.95,0.0001378,2]
[353838595,1740087040462,-4009.3,0.0001378,2]
[353838596,1740087040472,-500.0,0.0001378,2]
[353838597,1740087040481,-721.23,0.0001378,2]
[353838598,1740087040491,-721.81,0.0001378,2]
[353838599,1740087040500,-2378.09,0.0001378,2]
[353838600,1740087040510,-500.0,0.0001378,2]
[353838601,1740087040523,-1740.96,0.0001378,2]
[353838602,1740087040533,-500.0,0.0001378,2]
[353838603,1740087040543,-500.0,0.0001378,2]
[353838604,1740087040552,-502.33790019,0.0001378,2]
[353838605,1740087040562,-1000.04,0.0001378,2]
[353838606,1740087040572,-744.9,0.0001378,2]
[353838607,1740087040581,-500.0,0.0001378,2]
[353838608,1740087040590,-500.0,0.0001378,2]
[353838609,1740087040600,-500.0,0.0001378,2]
[353838610,1740087040609,-584.16711782,0.0001378,2]
[353838611,1740087040618,-1158.45,0.0001378,2]
[353838612,1740087040627,-505.32613227,0.0001378,2]
[353838613,1740087040636,-1405.19,0.0001378,2]
[353838614,1740087040646,-579.0,0.0001378,2]
[353838615,1740087040655,-500.0,0.0001378,2]
[353838616,1740087040665,-500.0,0.0001378,2]
[353838617,1740087040674,-2581.94,0.0001378,2]
[353838618,1740087040684,-730.42,0.0001378,2]
[353838619,1740087040693,-500.0,0.0001378,2]
[353838620,1740087040703,-500.0,0.0001378,2]
[353838621,1740087040712,-1848.57,0.0001378,2]
[353838622,1740087040721,-500.0,0.0001378,2]
[353838623,1740087040731,-500.0,0.0001378,2]
[353838624,1740087040740,-500.0,0.0001378,2]
[353838625,1740087040749,-500.0,0.0001378,2]
[353838626,1740087040759,-500.0,0.0001378,2]
[353838627,1740087040769,-500.0,0.0001378,2]
[353838628,1740087040778,-500.0,0.0001378,2]
[353838629,1740087040787,-500.0,0.0001378,2]
[353838630,1740087040797,-510.64415554,0.0001378,2]
[353838631,1740087040806,-500.0,0.0001378,2]
[353838632,1740087040815,-500.0,0.0001378,2]
[353838633,1740087040824,-579.63,0.0001378,2]
[353838634,1740087040833,-551.58,0.0001378,2]
[353838635,1740087040843,-500.0,0.0001378,2]
[353838636,1740087040852,-500.0,0.0001378,2]
[353838637,1740087040861,-500.0,0.0001378,2]
[353838638,1740087040870,-500.0,0.0001378,2]
[353838639,1740087040879,-6732.42,0.0001378,2]
[353838640,1740087040888,-500.0,0.0001378,2]
[353838641,1740087040897,-500.0,0.0001378,2]
[353838642,1740087040906,-929.37,0.0001378,2]
[353838643,1740087040915,-500.0,0.0001378,2]
[353838644,1740087040925,-500.0,0.0001378,2]
[353838645,1740087040934,-500.0,0.0001378,2]
[353838646,1740087040944,-500.0,0.0001378,2]
[353838647,1740087041053,-502.20490292,0.0001378,2]
[353838648,1740087041063,-1667.92,0.0001378,2]
[353838649,1740087041073,-18918.3,0.0001378,2]
[353838650,1740087041082,-500.0,0.0001378,2]
[353838651,1740087041092,-707.91,0.0001378,2]
[353838652,1740087041101,-500.0,0.0001378,2]
[353838653,1740087041111,-500.0,0.0001378,2]
[353838654,1740087041120,-500.0,0.0001378,2]
[353838655,1740087041130,-500.0,0.0001378,2]
[353838656,1740087041139,-500.0,0.0001378,2]
[353838657,1740087041148,-803.59,0.0001378,2]
[353838658,1740087041157,-500.0,0.0001378,2]
[353838659,1740087041167,-2222.49,0.0001378,2]
[353838660,1740087041176,-502.67069263,0.0001378,2]
[353838661,1740087041185,-2487.05,0.0001378,2]
[353838662,1740087041195,-500.0,0.0001378,2]
[353838663,1740087041204,-500.0,0.0001378,2]
[353838664,1740087041213,-536.98,0.0001378,2]
[353838665,1740087041222,-500.0,0.0001378,2]
[353838666,1740087041232,-8665.3,0.0001378,2]
[353838667,1740087041241,-500.0,0.0001378,2]
[353838668,1740087041255,-500.0,0.0001378,2]
[353838669,1740087041265,-2070.63,0.0001378,2]
[353838670,1740087041275,-833.45,0.0001378,2]
[353838671,1740087041284,-500.0,0.0001378,2]
[353838672,1740087041294,-500.0,0.0001378,2]
[353838673,1740087041303,-313.97481182,0.0001378,2]
[353838674,1740087041313,-500.0,0.0001378,2]
[353838675,1740087041324,-500.0,0.0001378,2]
[353838676,1740087041333,-151.0,0.000138,2]
[353838677,1740087041343,-557.1188801,0.000138,2]
[353838678,1740087041353,-500.0,0.00013863,2]
[353838679,1740087041362,-500.0,0.00013863,2]
[353838680,1740087041372,-171.49052145,0.00013863,2]
[353838681,1740087041381,-500.0,0.00013863,2]
[353838682,1740087041391,-500.0,0.00013863,2]
[353838683,1740087041400,-500.0,0.00013863,2]
[353838684,1740087041410,-502.31209803,0.00013863,2]
[353838685,1740087041419,-500.0,0.00013863,2]
[353838686,1740087041429,-500.0,0.00013863,2]
[353838687,1740087041438,-512.64298047,0.00013863,2]
[353838688,1740087041447,-500.0,0.00013863,2]
[353838689,1740087041457,-501.03902153,0.00013863,2]
[353838690,1740087041466,-500.0,0.00013863,2]
[353838691,1740087041475,-500.0,0.00013863,2]
[353838692,1740087041485,-500.0,0.00013863,2]
[353838693,1740087041494,-500.0,0.00013863,2]
[353838694,1740087041504,-500.0,0.00013863,2]
[353838695,1740087041514,-500.0,0.00013863,2]
[353838696,1740087041524,-500.0,0.00013863,2]
[353838697,1740087041534,-500.0,0.00013863,2]
[353838698,1740087041543,-500.0,0.00013863,2]
[353838699,1740087041552,-500.0,0.00013863,2]
[353838700,1740087041561,-500.0,0.00013863,2]
[353838701,1740087041571,-500.0,0.00013863,2]
[353838702,1740087041580,-500.0,0.00013863,2]
[353838703,1740087041589,-500.0,0.00013863,2]
[353838704,1740087041598,-500.0,0.00013863,2]
[353838705,1740087041607,-508.98515076,0.00013863,2]
[353838706,1740087041617,-500.0,0.00013863,2]
[353838707,1740087041627,-500.0,0.00013863,2]
[353838708,1740087041635,-500.0,0.00013863,2]
[353838709,1740087041644,-500.0,0.00013863,2]
[353838710,1740087041653,-500.0,0.00013863,2]
[353838711,1740087041662,-500.0,0.00013863,2]
[353838712,1740087041672,-500.0,0.00013863,2]
[353838713,1740087041681,-500.0,0.00013863,2]
[353838714,1740087041690,-500.0,0.00013863,2]
[353838715,1740087041700,-505.1561319,0.00013863,2]
[353838716,1740087041709,-500.0,0.00013863,2]
[353838717,1740087041719,-500.0,0.00013863,2]
[353838718,1740087041728,-500.0,0.00013863,2]
[353838719,1740087041738,-500.0,0.00013863,2]
[353838720,1740087041750,-500.0,0.00013863,2]
[353838721,1740087041759,-500.0,0.00013863,2]
[353838722,1740087041770,-504.13495673,0.00013863,2]
[353838723,1740087041780,-500.0,0.00013863,2]
[353838724,1740087041789,-500.0,0.00013863,2]
[353838725,1740087041799,-500.0,0.00013863,2]
[353838726,1740087041809,-500.0,0.00013863,2]
[353838727,1740087041820,-500.0,0.00013863,2]
[353838728,1740087041830,-500.0,0.00013863,2]
[353838729,1740087041839,-500.0,0.00013863,2]
[353838730,1740087041849,-500.0,0.00013863,2]
[353838731,1740087041859,-500.0,0.00013863,2]
[353838732,1740087041868,-500.0,0.00013863,2]
[353838733,1740087041878,-500.0,0.00013863,2]
[353838734,1740087041887,-1641.08,0.00013863,2]
[353838735,1740087041898,-859.29,0.00013863,2]
[353838736,1740087041908,-1036.17,0.00013863,2]
[353838737,1740087041918,-501.78935841,0.00013863,2]
[353838738,1740087041928,-500.0,0.00013863,2]
[353838739,1740087041939,-500.0,0.00013863,2]
[353838740,1740087041949,-500.0,0.00013863,2]
[353838741,1740087041958,-500.0,0.00013863,2]
[353838742,1740087041968,-500.0,0.00013863,2]
[353838743,1740087041978,-500.0,0.00013863,2]
[353838744,1740087041987,-500.0,0.00013863,2]
[353838745,1740087041997,-752.36,0.00013863,2]
[353838746,1740087042007,-573.78,0.00013863,2]
[353838747,1740087042017,-500.0,0.00013863,2]
[353838748,1740087042026,-500.0,0.00013863,2]
[353838749,1740087042036,-500.0,0.00013863,2]
[353838750,1740087042046,-500.0,0.00013863,2]
[353838751,1740087042055,-500.0,0.00013863,2]
[353838752,1740087042065,-500.0,0.00013863,2]
[353838753,1740087042075,-1213.27,0.00013863,2]
[353838754,1740087042085,-660.09,0.00013863,2]
[353838755,1740087042095,-784.62,0.00013863,2]
[353838756,1740087042106,-523.95525576,0.00013863,2]
[353838757,1740087042115,-500.0,0.00013863,2]
[353838758,1740087042125,-500.0,0.00013863,2]
[353838759,1740087042135,-500.0,0.00013863,2]
[353838760,1740087042145,-781.87,0.00013863,2]
[353838761,1740087042156,-500.0,0.00013863,2]
[353838762,1740087042166,-500.0,0.00013863,2]
[353838763,1740087042176,-500.0,0.00013863,2]
[353838764,1740087042186,-500.0,0.00013863,2]
[353838765,1740087042196,-500.0,0.00013863,2]
[353838766,1740087042206,-500.0,0.00013863,2]
[353838767,1740087042216,-812.22,0.00013863,2]
[353838768,1740087042225,-500.0,0.00013863,2]
[353838769,1740087042235,-500.0,0.00013863,2]
[353838770,1740087042244,-865.91,0.00013863,2]
[353838771,1740087042258,-731.9,0.00013863,2]
[353838772,1740087042267,-1424.64,0.00013863,2]
[353838775,1740087042277,-756.84,0.00013863,2]
[353838777,1740087042286,-500.0,0.00013863,2]
[353838779,1740087042296,-500.0,0.00013863,2]
[353838781,1740087042305,-500.0,0.00013863,2]
[353838783,1740087042315,-500.0,0.00013863,2]
[353838784,1740087042324,-510.23,0.00013863,2]
[353838785,1740087042334,-500.0,0.00013863,2]
[353838786,1740087042344,-543.53,0.00013863,2]
[353838787,1740087042354,-500.0,0.00013863,2]
[353838788,1740087042364,-722.93,0.00013863,2]
[353838789,1740087042373,-616.62,0.00013863,2]
[353838790,1740087042383,-500.0,0.00013863,2]
[353838792,1740087042392,-500.0,0.00013863,2]
[353838793,1740087042402,-472.30882671,0.00013863,2]
[353838795,1740087042411,-500.0,0.00013863,2]
[353838798,1740087042420,-500.0,0.00013863,2]
[353838800,1740087042429,-500.0,0.00013863,2]
[353838802,1740087042439,-500.0,0.00013863,2]
[353838803,1740087042449,-921.41,0.00013863,2]
[353838805,1740087042458,-398.81115483,0.00013863,2]
[353838807,1740087042467,-500.0,0.00013863,2]
[353838810,1740087042478,-500.0,0.00013863,2]
[353838813,1740087042489,-500.0,0.00013863,2]
[353838816,1740087042499,-500.0,0.00013863,2]
[353838819,1740087042509,-500.0,0.00013863,2]
[353838821,1740087042520,-500.0,0.00013863,2]
[353838823,1740087042529,-500.0,0.00013863,2]
[353838825,1740087042539,-500.0,0.00013863,2]
[353838827,1740087042549,-500.0,0.00013863,2]
[353838829,1740087042559,-500.0,0.00013863,2]
[353838830,1740087042568,-634.66,0.00013863,2]
[353838831,1740087042577,-802.0,0.00013863,2]
[353838832,1740087042587,-480.6041164,0.00013863,2]
[353838833,1740087042596,-500.0,0.00013863,2]
[353838834,1740087042605,-500.0,0.00013863,2]
[353838835,1740087042614,-500.0,0.00013863,2]
[353838836,1740087042624,-500.0,0.00013863,2]
[353838837,1740087042634,-680.47,0.00013863,2]
[353838838,1740087042644,-609.4,0.00013863,2]
[353838839,1740087042653,-500.0,0.00013863,2]
[353838840,1740087042663,-500.0,0.00013863,2]
[353838841,1740087042673,-500.0,0.00013863,2]
[353838842,1740087042681,-500.0,0.00013863,2]
[353838843,1740087042691,-500.0,0.00013863,2]
[353838844,1740087042700,-500.0,0.00013863,2]
[353838845,1740087042710,-523.65978823,0.00013863,2]
[353838847,1740087042719,-713.95,0.00013863,2]
[353838848,1740087042729,-4482.33,0.00013863,2]
[353838849,1740087042739,-501.14196905,0.00013863,2]
[353838850,1740087042748,-500.0,0.00013863,2]
[353838851,1740087042757,-500.0,0.00013863,2]
[353838852,1740087042768,-3843.42,0.00013863,2]
[353838853,1740087042777,-500.0,0.00013863,2]
[353838854,1740087042787,-500.0,0.00013863,2]
[353838855,1740087042796,-500.0,0.00013863,2]
[353838856,1740087042805,-2140.95,0.00013863,2]
[353838857,1740087042815,-500.0,0.00013863,2]
[353838858,1740087042825,-500.0,0.00013863,2]
[353838859,1740087042834,-500.0,0.00013863,2]
[353838860,1740087042844,-711.96,0.00013863,2]
[353838861,1740087042854,-854.95,0.00013863,2]
[353838862,1740087042863,-500.0,0.00013863,2]
[353838863,1740087042873,-1389.71,0.00013863,2]
[353838864,1740087042883,-500.0,0.00013863,2]
[353838865,1740087042892,-500.0,0.00013863,2]
[353838866,1740087042902,-500.0,0.00013863,2]
[353838867,1740087042911,-500.0,0.00013863,2]
[353838868,1740087042920,-16524.72,0.00013863,2]
[353838869,1740087042930,-599.75,0.00013863,2]
[353838871,1740087042944,-500.0,0.00013863,2]
[353838872,1740087042953,-500.0,0.00013863,2]
[353838873,1740087042963,-500.0,0.00013863,2]
[353838874,1740087042972,-500.0,0.00013863,2]
[353838875,1740087042982,-500.0,0.00013863,2]
[353838876,1740087042991,-701.65,0.00013863,2]
[353838877,1740087043001,-3198.43,0.00013863,2]
[353838878,1740087043010,-1206.8,0.00013863,2]
[353838879,1740087043020,-1312.98,0.00013863,2]
[353838880,1740087043030,-1437.76,0.00013863,2]
[353838881,1740087043039,-500.0,0.00013863,2]
[353838882,1740087043049,-500.0,0.00013863,2]
[353838883,1740087043059,-1098.36,0.00013863,2]
[353838884,1740087043068,-3728.66,0.00013863,2]
[353838885,1740087043078,-500.0,0.00013863,2]
[353838886,1740087043087,-500.0,0.00013863,2]
[353838887,1740087043097,-500.0,0.00013863,2]
[353838888,1740087043106,-500.0,0.00013863,2]
[353838889,1740087043116,-7892.98,0.00013863,2]
[353838890,1740087043126,-500.0,0.00013863,2]
[353838891,1740087043136,-500.0,0.00013863,2]
[353838892,1740087043146,-500.0,0.00013863,2]
[353838893,1740087043157,-37991.13,0.00013863,2]
[353838894,1740087043166,-500.0,0.00013863,2]
[353838895,1740087043175,-500.0,0.00013863,2]
[353838896,1740087043185,-500.0,0.00013863,2]
[353838897,1740087043195,-500.0,0.00013863,2]
[353838898,1740087043204,-500.0,0.00013863,2]
[353838899,1740087043214,-2455.56,0.00013863,2]
[353838900,1740087043224,-500.0,0.00013863,2]
[353838901,1740087043234,-500.0,0.00013863,2]
[353838902,1740087043243,-4421.0,0.00013863,2]
[353838903,1740087043258,-1271.95,0.00013863,2]
[353838904,1740087043269,-4009.3,0.00013863,2]
[353838905,1740087043278,-500.0,0.00013863,2]
[353838906,1740087043287,-721.23,0.00013863,2]
[353838907,1740087043299,-721.81,0.00013863,2]
[353838908,1740087043308,-2378.09,0.00013863,2]
[353838909,1740087043317,-500.0,0.00013863,2]
[353838910,1740087043329,-1740.96,0.00013863,2]
[353838911,1740087043339,-500.0,0.00013863,2]
[353838912,1740087043348,-500.0,0.00013863,2]
[353838913,1740087043358,-1000.04,0.00013863,2]
[353838914,1740087043367,-744.9,0.00013863,2]
[353838915,1740087043376,-500.0,0.00013863,2]
[353838916,1740087043386,-500.0,0.00013863,2]
[353838917,1740087043395,-1158.45,0.00013863,2]
[353838918,1740087043405,-1405.19,0.00013863,2]
[353838919,1740087043416,-579.0,0.00013863,2]
[353838920,1740087043427,-500.0,0.00013863,2]
[353838921,1740087043539,-500.0,0.00013863,2]
[353838922,1740087043550,-2581.94,0.00013863,2]
[353838923,1740087043559,-730.42,0.00013863,2]